[Event "Fast Chess"]
[Site "ChessKid.com"]
[Date "2020.04.26"]
[Round "3"]
[White "Horvath, Alexander"]
[Black "Dai, Lana"]
[Result "0-1"]
[ECO "C55"]
[WhiteElo "1314"]
[BlackElo "1268"]
[Annotator "einzügiger Einsteller"]
[PlyCount "154"]
[EventDate "2020.??.??"]
[TimeControl "300+10"]
[WhiteClock "0:01:22"]
[BlackClock "0:01:23"]

1. e4 {[%emt 0:00:11]} e5 {[%emt 0:00:11]} 2. Nf3 {[%emt 0:00:12]} Nc6 {
[%emt 0:00:11]} 3. Nc3 {[%emt 0:00:11]} Nf6 {[%emt 0:00:11]} 4. Bc4 {[%emt 0:
00:10]} h6 {[%emt 0:00:11]} 5. d3 {[%emt 0:00:11]} a6 {[%emt 0:00:11]} 6. a3 {
[%emt 0:00:12]} b5 {[%emt 0:00:11]} 7. Ba2 {[%emt 0:00:11]} b4 {[%emt 0:00:16]}
8. axb4 {[%emt 0:00:15]} Nxb4 {[%emt 0:00:11]} 9. h3 {[%emt 0:00:14]} Nxa2 {
[%emt 0:00:12]} 10. Rxa2 {[%emt 0:00:13]} Bb4 {[%emt 0:00:13]} 11. O-O {
[%emt 0:00:20]} Bxc3 {[%emt 0:00:11]} 12. bxc3 {[%emt 0:00:11]} d6 {[%emt 0:00:
12]} 13. Nh2 {[%emt 0:00:16]} Be6 {[%emt 0:00:11]} 14. Qf3 $4 {[%emt 0:00:16]}
Bxa2 {[%emt 0:00:12]} 15. Qg3 {[%emt 0:00:12]} O-O {[%emt 0:00:17]} 16. Bxh6 {
[%emt 0:00:14]} g6 {[%emt 0:00:22]} 17. Bxf8 {[%emt 0:00:12]} Kxf8 {[%emt 0:00:
10]} 18. Qh4 {[%emt 0:00:19]} Ng8 {[%emt 0:00:21]} 19. Qxd8+ {[%emt 0:00:14]}
Rxd8 {[%emt 0:00:11]} 20. Ra1 {[%emt 0:00:13]} Be6 {[%emt 0:00:16]} 21. Rxa6 {
[%emt 0:00:11]} Nh6 {[%emt 0:00:14]} 22. Ra7 {[%emt 0:00:15]} c5 {[%emt 0:00:
14]} 23. g3 {[%emt 0:00:17]} Bxh3 {[%emt 0:00:13]} 24. f3 {[%emt 0:00:30]} d5 {
[%emt 0:00:19]} 25. exd5 {[%emt 0:00:13]} Rxd5 {[%emt 0:00:11]} 26. Ra8+ {
[%emt 0:00:12]} Kg7 {[%emt 0:00:12]} 27. c4 {[%emt 0:00:14]} Rd4 {[%emt 0:00:
15]} 28. Ra5 {[%emt 0:00:16]} f5 {[%emt 0:00:21]} 29. Rxc5 {[%emt 0:00:12]} e4
{[%emt 0:00:12]} 30. fxe4 {[%emt 0:00:11]} fxe4 {[%emt 0:00:11]} 31. dxe4 {
[%emt 0:00:12]} Rxe4 {[%emt 0:00:14]} 32. Rc7+ {[%emt 0:00:11]} Kf6 {[%emt 0:
00:14]} 33. c5 {[%emt 0:00:11]} Re1+ {[%emt 0:00:13]} 34. Kf2 {[%emt 0:00:12]}
Rh1 {[%emt 0:00:13]} 35. Nf3 {[%emt 0:00:15]} Bg2 {[%emt 0:00:15]} 36. c6 {
[%emt 0:00:16]} Bxf3 {[%emt 0:00:10]} 37. Kxf3 {[%emt 0:00:10]} Rf1+ {[%emt 0:
00:13]} 38. Kg2 {[%emt 0:00:10]} Rc1 {[%emt 0:00:12]} 39. Ra7 {[%emt 0:00:17]}
Rxc2+ {[%emt 0:00:11]} 40. Kf3 {[%emt 0:00:12]} Rc3+ {[%emt 0:00:13]} 41. Ke4 {
[%emt 0:00:12]} Rc4+ {[%emt 0:00:13]} 42. Kd5 {[%emt 0:00:11]} Rc3 {[%emt 0:00:
14]} 43. Kd6 {[%emt 0:00:16]} Nf7+ {[%emt 0:00:15]} 44. Kd7 {[%emt 0:00:15]}
Ne5+ {[%emt 0:00:12]} 45. Kd6 {[%emt 0:00:13]} Rxc6+ {[%emt 0:00:13]} 46. Kd5 {
[%emt 0:00:12]} Nf3 {[%emt 0:00:16]} 47. Kxc6 {[%emt 0:00:12]} Ne5+ {[%emt 0:
00:15]} 48. Kd5 {[%emt 0:00:16]} g5 {[%emt 0:00:14]} 49. Ra6+ {[%emt 0:00:13]}
Kf5 {[%emt 0:00:11]} 50. Ra1 {[%emt 0:00:21]} Nf3 {[%emt 0:00:12]} 51. Rf1 {
[%emt 0:00:15]} Kg4 {[%emt 0:00:12]} 52. Ke4 {[%emt 0:00:13]} Nd2+ {[%emt 0:00:
13]} 53. Ke3 {[%emt 0:00:13]} Nxf1+ {[%emt 0:00:11]} 54. Kf2 {[%emt 0:00:11]}
Nxg3 {[%emt 0:00:11]} 55. Kg2 {[%emt 0:00:12]} Ne4 {[%emt 0:00:11]} 56. Kg1 {
[%emt 0:00:11]} Kh3 {[%emt 0:00:12]} 57. Kh1 {[%emt 0:00:11]} g4 {[%emt 0:00:
11]} 58. Kg1 {[%emt 0:00:11]} g3 {[%emt 0:00:11]} 59. Kh1 {[%emt 0:00:10]} Nf2+
{[%emt 0:00:10]} 60. Kg1 {[%emt 0:00:10]} Nd3 {[%emt 0:00:15]} 61. Kh1 {
[%emt 0:00:12]} Nf4 {[%emt 0:00:19]} 62. Kg1 {[%emt 0:00:11]} g2 {[%emt 0:00:
17]} 63. Kf2 {[%emt 0:00:12]} Kh2 {[%emt 0:00:12]} 64. Kf3 {[%emt 0:00:11]}
g1=Q {[%emt 0:00:11]} 65. Kxf4 {[%emt 0:00:10]} Qe1 {[%emt 0:00:11]} 66. Kf3 {
[%emt 0:00:11]} Kh3 {[%emt 0:00:13]} 67. Kf4 {[%emt 0:00:11]} Kg2 {[%emt 0:00:
11]} 68. Kg4 {[%emt 0:00:11]} Qf2 {[%emt 0:00:13]} 69. Kg5 {[%emt 0:00:11]} Kf1
{[%emt 0:00:14]} 70. Kg4 {[%emt 0:00:11]} Ke2 {[%emt 0:00:11]} 71. Kg5 {
[%emt 0:00:11]} Ke3 {[%emt 0:00:10]} 72. Kg4 {[%emt 0:00:11]} Qf3+ {[%emt 0:00:
11]} 73. Kg5 {[%emt 0:00:11]} Ke4 {[%emt 0:00:11]} 74. Kh4 {[%emt 0:00:12]} Qg2
{[%emt 0:00:12]} 75. Kh5 {[%emt 0:00:11]} Kf5 {[%emt 0:00:10]} 76. Kh6 {
[%emt 0:00:10]} Kf6 {[%emt 0:00:11]} 77. Kh7 {[%emt 0:00:11]} Qg7# {[%emt 0:00:
13] TopBrownCave won by checkmate} 0-1

[Event "Fast Chess"]
[Site "ChessKid.com"]
[Date "2020.04.26"]
[Round "1"]
[White "Georgiev, Maximilian"]
[Black "Horvath, Alexander"]
[Result "1-0"]
[ECO "A20"]
[WhiteElo "1407"]
[BlackElo "1307"]
[PlyCount "83"]
[EventDate "2020.??.??"]
[TimeControl "180"]
[WhiteClock "0:00:01"]
[BlackClock "0:00:51"]

1. c4 {[%emt 0:00:02]} e5 {[%emt 0:00:02]} 2. g3 {[%emt 0:00:02]} Nc6 {[%emt 0:
00:02]} 3. Bg2 {[%emt 0:00:01]} Nf6 {[%emt 0:00:02]} 4. e3 {[%emt 0:00:01]} Bc5
{[%emt 0:00:06]} 5. Ne2 {[%emt 0:00:02]} e4 {[%emt 0:00:02]} 6. O-O {[%emt 0:
00:01]} d6 {[%emt 0:00:01]} 7. Nbc3 {[%emt 0:00:02]} Be6 {[%emt 0:00:01]} 8.
Nxe4 {[%emt 0:00:05]} Nxe4 {[%emt 0:00:04]} 9. Bxe4 {[%emt 0:00:01]} Bxc4 {
[%emt 0:00:01]} 10. b3 {[%emt 0:00:03]} Bxe2 {[%emt 0:00:02]} 11. Qxe2 {
[%emt 0:00:01]} O-O {[%emt 0:00:05]} 12. Qh5 {[%emt 0:00:08]} g6 {[%emt 0:00:
04]} 13. Qh6 {[%emt 0:00:02]} d5 {[%emt 0:00:05]} 14. Bc2 {[%emt 0:00:04]} Qf6
{[%emt 0:00:12]} 15. d4 $2 {[%emt 0:00:04]} Bb6 {[%emt 0:00:08]} 16. a4 {
[%emt 0:00:04]} a6 {[%emt 0:00:07]} 17. a5 {[%emt 0:00:01]} Bxa5 {[%emt 0:00:
04]} 18. Bb2 {[%emt 0:00:06]} Bb6 {[%emt 0:00:16]} 19. Kg2 {[%emt 0:00:13]} Nb4
{[%emt 0:00:08]} 20. Bd1 {[%emt 0:00:07]} Nd3 {[%emt 0:00:08]} 21. Bc1 {
[%emt 0:00:04]} Nxc1 {[%emt 0:00:07]} 22. Rxc1 {[%emt 0:00:01]} Qe6 {[%emt 0:
00:23]} 23. Bf3 {[%emt 0:00:08]} c6 {[%emt 0:00:05]} 24. Qh4 {[%emt 0:00:09]}
Bd8 {[%emt 0:00:04]} 25. Qg4 {[%emt 0:00:04]} Qxg4 {[%emt 0:00:10]} 26. Bxg4 {
[%emt 0:00:01]} Bg5 {[%emt 0:00:05]} 27. Rc5 {[%emt 0:00:04]} Be7 {[%emt 0:00:
06]} 28. Rc2 {[%emt 0:00:03]} Bf6 {[%emt 0:00:03]} 29. f4 {[%emt 0:00:03]} Bg7
{[%emt 0:00:01]} 30. Re1 {[%emt 0:00:01]} Rfe8 {[%emt 0:00:01]} 31. Rce2 {
[%emt 0:00:03]} Re7 {[%emt 0:00:01]} 32. e4 {[%emt 0:00:02]} Rae8 {[%emt 0:00:
02]} 33. e5 {[%emt 0:00:02]} Bh8 {[%emt 0:00:05]} 34. b4 {[%emt 0:00:01]} b6 {
[%emt 0:00:02]} 35. Re3 {[%emt 0:00:03]} a5 {[%emt 0:00:00]} 36. bxa5 {[%emt 0:
00:01]} bxa5 {[%emt 0:00:00]} 37. Ra3 {[%emt 0:00:01]} Ra7 {[%emt 0:00:04]} 38.
Re2 {[%emt 0:00:04]} Rea8 {[%emt 0:00:00]} 39. Ra4 {[%emt 0:00:02]} Bg7 {
[%emt 0:00:00]} 40. f5 {[%emt 0:00:02]} Kh8 {[%emt 0:00:00]} 41. fxg6 {[%emt 0:
00:01]} Bf8 {[%emt 0:00:00]} 42. gxf7 {[%emt 0:00:01] TallSnazzyBall won on
time} 1-0

[Event "Fast Chess"]
[Site "ChessKid.com"]
[Date "2020.04.26"]
[Round "1"]
[White "Li, Patrick"]
[Black "Li, Tobias"]
[Result "0-1"]
[ECO "C50"]
[WhiteElo "1099"]
[BlackElo "1365"]
[PlyCount "63"]
[EventDate "2020.??.??"]
[TimeControl "180"]
[WhiteClock "0:00:52"]
[BlackClock "0:00:06"]

1. e4 {[%emt 0:00:03]} e5 {[%emt 0:00:01]} 2. Nf3 {[%emt 0:00:00]} Nc6 {
[%emt 0:00:01]} 3. Nc3 {[%emt 0:00:01]} Bc5 {[%emt 0:00:01]} 4. Bc4 {[%emt 0:
00:03]} Nf6 {[%emt 0:00:01]} 5. O-O {[%emt 0:00:04]} O-O {[%emt 0:00:02]} 6. h3
{[%emt 0:00:04]} d6 {[%emt 0:00:01]} 7. d3 {[%emt 0:00:05]} h6 {[%emt 0:00:01]}
8. a3 {[%emt 0:00:21]} a6 {[%emt 0:00:01]} 9. b4 {[%emt 0:00:01]} Bd4 {[%emt 0:
00:01]} 10. Nxd4 {[%emt 0:00:08]} exd4 {[%emt 0:00:00]} 11. Nd5 {[%emt 0:00:02]
} Nxd5 {[%emt 0:00:05]} 12. Bxd5 {[%emt 0:00:03]} Bd7 {[%emt 0:00:08]} 13. Qf3
{[%emt 0:00:05]} Qe8 {[%emt 0:00:11]} 14. Qg3 {[%emt 0:00:02]} Qe5 {[%emt 0:00:
05]} 15. f4 {[%emt 0:00:14]} Qf6 {[%emt 0:00:07]} 16. f5 {[%emt 0:00:03]} Rfe8
{[%emt 0:00:07]} 17. Qf3 {[%emt 0:00:12]} Ne5 {[%emt 0:00:08]} 18. Qh5 {
[%emt 0:00:02]} c6 {[%emt 0:00:08]} 19. Ba2 {[%emt 0:00:06]} d5 {[%emt 0:00:06]
} 20. Bf4 {[%emt 0:00:08]} dxe4 {[%emt 0:00:09]} 21. Bxe5 {[%emt 0:00:04]} Rxe5
{[%emt 0:00:01]} 22. dxe4 {[%emt 0:00:03]} Rxe4 {[%emt 0:00:05]} 23. Rae1 {
[%emt 0:00:05]} Rxe1 {[%emt 0:00:02]} 24. Rxe1 {[%emt 0:00:02]} Qxf5 {[%emt 0:
00:05]} 25. Qh4 {[%emt 0:00:11]} Re8 {[%emt 0:00:07]} 26. Rf1 {[%emt 0:00:02]}
Qe5 {[%emt 0:00:07]} 27. Bxf7+ {[%emt 0:00:09]} Kf8 {[%emt 0:00:06]} 28. Bxe8+
{[%emt 0:00:09]} Kg8 {[%emt 0:00:05]} 29. Bxd7 {[%emt 0:00:09]} Qe3+ {[%emt 0:
00:02]} 30. Rf2 {[%emt 0:00:03]} Qe1+ {[%emt 0:00:02]} 31. Rf1 {[%emt 0:00:03]}
Qxh4 {[%emt 0:00:01]} 32. Kh2 {[%emt 0:00:08] OnlyHungryKiwi won by resignation
} 0-1

[Event "Fast Chess"]
[Site "ChessKid.com"]
[Date "2020.04.26"]
[Round "2"]
[White "Li, Tobias"]
[Black "Georgiev, Maximilian"]
[Result "0-1"]
[ECO "A30"]
[WhiteElo "1358"]
[BlackElo "1414"]
[PlyCount "50"]
[EventDate "2020.??.??"]
[TimeControl "180"]
[WhiteClock "0:01:50"]
[BlackClock "0:00:45"]

1. e4 {[%emt 0:00:01]} c5 {[%emt 0:00:00]} 2. Nf3 {[%emt 0:00:01]} g6 {[%emt 0:
00:01]} 3. c4 {[%emt 0:00:03]} Bg7 {[%emt 0:00:00]} 4. Nc3 {[%emt 0:00:00]} e6
{[%emt 0:00:01]} 5. d3 {[%emt 0:00:04]} Ne7 {[%emt 0:00:02]} 6. Bd2 {[%emt 0:
00:00]} O-O {[%emt 0:00:02]} 7. Be2 {[%emt 0:00:01]} Nbc6 {[%emt 0:00:02]} 8.
O-O {[%emt 0:00:01]} d6 {[%emt 0:00:01]} 9. Re1 {[%emt 0:00:09]} b6 {[%emt 0:
00:01]} 10. b3 {[%emt 0:00:07]} e5 {[%emt 0:00:01]} 11. Rc1 {[%emt 0:00:04]}
Re8 {[%emt 0:00:02]} 12. Qc2 {[%emt 0:00:02]} Qc7 {[%emt 0:00:02]} 13. h3 {
[%emt 0:00:01]} Qb7 {[%emt 0:00:03]} 14. Qb2 {[%emt 0:00:15]} Nd4 {[%emt 0:00:
05]} 15. Nxd4 {[%emt 0:00:03]} exd4 {[%emt 0:00:01]} 16. Nd1 {[%emt 0:00:04]}
Bd7 {[%emt 0:00:02]} 17. Bf3 {[%emt 0:00:14]} Qc7 {[%emt 0:00:03]} 18. e5 {
[%emt 0:00:02]} Rab8 {[%emt 0:00:03]} 19. exd6 {[%emt 0:00:02]} Qxd6 {[%emt 0:
00:04]} 20. Bg5 {[%emt 0:00:20]} Nc6 {[%emt 0:00:08]} 21. Rxe8+ {[%emt 0:00:09]
} Rxe8 {[%emt 0:00:01]} 22. Kf1 {[%emt 0:00:10]} Qh2 {[%emt 0:00:06]} 23. g4 {
[%emt 0:00:14]} Bc8 {[%emt 0:00:12]} 24. Bxc6 {[%emt 0:00:09]} Qxh3+ {[%emt 0:
00:04]} 25. Kg1 {[%emt 0:00:00]} Re1# {[%emt 0:00:04] TallSnazzyBall won by
checkmate} 0-1

[Event "Fast Chess"]
[Site "ChessKid.com"]
[Date "2020.04.26"]
[Round "2"]
[White "Horvath, Alexander"]
[Black "Li, Patrick"]
[Result "1-0"]
[ECO "C55"]
[WhiteElo "1311"]
[BlackElo "1095"]
[PlyCount "59"]
[EventDate "2020.??.??"]
[TimeControl "180"]
[WhiteClock "0:00:03"]
[BlackClock "0:00:30"]

1. e4 {[%emt 0:00:02]} e5 {[%emt 0:00:01]} 2. Nf3 {[%emt 0:00:01]} Nc6 {
[%emt 0:00:01]} 3. Nc3 {[%emt 0:00:01]} Nf6 {[%emt 0:00:01]} 4. Bc4 {[%emt 0:
00:00]} Bc5 {[%emt 0:00:05]} 5. Ng5 {[%emt 0:00:03]} O-O {[%emt 0:00:03]} 6.
Nxf7 {[%emt 0:00:03]} Rxf7 {[%emt 0:00:01]} 7. Bxf7+ {[%emt 0:00:02]} Kxf7 {
[%emt 0:00:01]} 8. d3 {[%emt 0:00:03]} Nd4 {[%emt 0:00:10]} 9. Be3 {[%emt 0:00:
03]} Ng4 {[%emt 0:00:17]} 10. Qxg4 {[%emt 0:00:05]} d5 {[%emt 0:00:03]} 11.
Qh5+ {[%emt 0:00:06]} Kg8 {[%emt 0:00:02]} 12. exd5 {[%emt 0:00:08]} Nxc2+ {
[%emt 0:00:07]} 13. Kf1 {[%emt 0:00:03]} Nxa1 {[%emt 0:00:02]} 14. g3 {[%emt 0:
00:01]} Bxe3 {[%emt 0:00:03]} 15. fxe3 {[%emt 0:00:03]} Bd7 {[%emt 0:00:09]}
16. Kg2 {[%emt 0:00:02]} Nc2 {[%emt 0:00:03]} 17. d4 {[%emt 0:00:06]} Be8 {
[%emt 0:00:02]} 18. Qxe5 {[%emt 0:00:04]} Nb4 {[%emt 0:00:12]} 19. Rf1 {
[%emt 0:00:03]} Bf7 {[%emt 0:00:06]} 20. d6 {[%emt 0:00:11]} cxd6 {[%emt 0:00:
16]} 21. Qf4 {[%emt 0:00:03]} Bd5+ {[%emt 0:00:05]} 22. Kg1 {[%emt 0:00:04]}
Bc4 {[%emt 0:00:12]} 23. Rf3 {[%emt 0:00:15]} Ba6 {[%emt 0:00:10]} 24. d5 {
[%emt 0:00:07]} Qf8 {[%emt 0:00:09]} 25. Qg4 {[%emt 0:00:24]} Nxa2 {[%emt 0:00:
07]} 26. Rxf8+ {[%emt 0:00:14]} Rxf8 {[%emt 0:00:17]} 27. Nxa2 {[%emt 0:00:02]}
Rf1+ {[%emt 0:00:06]} 28. Kg2 {[%emt 0:00:02]} Rf6 {[%emt 0:00:05]} 29. Nb4 {
[%emt 0:00:05]} Rg6 {[%emt 0:00:03]} 30. Qc8+ {[%emt 0:00:04] KeenOrangeTeeth
won on time} 1-0

[Event "Fast Chess"]
[Site "ChessKid.com"]
[Date "2020.04.26"]
[Round "3"]
[White "Georgiev, Maximilian"]
[Black "Li, Patrick"]
[Result "1-0"]
[ECO "A25"]
[WhiteElo "1416"]
[BlackElo "1093"]
[PlyCount "53"]
[EventDate "2020.??.??"]
[TimeControl "180"]
[WhiteClock "0:00:06"]
[BlackClock "0:01:03"]

1. c4 {[%emt 0:00:01]} e5 {[%emt 0:00:03]} 2. g3 {[%emt 0:00:01]} Nf6 {[%emt 0:
00:05]} 3. Bg2 {[%emt 0:00:01]} d6 {[%emt 0:00:09]} 4. Nc3 {[%emt 0:00:00]} Nc6
{[%emt 0:00:01]} 5. e3 {[%emt 0:00:02]} d5 {[%emt 0:00:07]} 6. cxd5 {[%emt 0:
00:02]} Nxd5 {[%emt 0:00:01]} 7. Nxd5 {[%emt 0:00:02]} Be6 {[%emt 0:00:08]} 8.
Nc3 {[%emt 0:00:03]} Bf5 {[%emt 0:00:05]} 9. Nge2 {[%emt 0:00:03]} Nb4 {
[%emt 0:00:04]} 10. O-O {[%emt 0:00:14]} Bc2 {[%emt 0:00:12]} 11. Qe1 {[%emt 0:
00:03]} Qd3 {[%emt 0:00:04]} 12. Bxb7 {[%emt 0:00:09]} Rb8 {[%emt 0:00:07]} 13.
Be4 {[%emt 0:00:04]} Qd6 {[%emt 0:00:18]} 14. Bg2 {[%emt 0:00:05]} Bd3 {
[%emt 0:00:03]} 15. Qd1 {[%emt 0:00:14]} Qa6 {[%emt 0:00:06]} 16. Re1 {[%emt 0:
00:06]} Nc2 {[%emt 0:00:05]} 17. Nd5 {[%emt 0:00:10]} Nxa1 {[%emt 0:00:06]} 18.
Nxc7+ {[%emt 0:00:02]} Kd7 {[%emt 0:00:17]} 19. Nxa6 {[%emt 0:00:01]} Bc2 {
[%emt 0:00:12]} 20. Nxb8+ {[%emt 0:00:06]} Kc8 {[%emt 0:00:05]} 21. Qxc2+ {
[%emt 0:00:06]} Nxc2 {[%emt 0:00:06]} 22. Rd1 {[%emt 0:00:02]} Kxb8 {[%emt 0:
00:03]} 23. a3 {[%emt 0:00:06]} Bc5 {[%emt 0:00:12]} 24. Be4 {[%emt 0:00:03]}
Rc8 {[%emt 0:00:06]} 25. Bxc2 {[%emt 0:00:02]} Bd6 {[%emt 0:00:05]} 26. Bf5 {
[%emt 0:00:05]} Rc2 {[%emt 0:00:04]} 27. d4 {[%emt 0:00:06] TallSnazzyBall won
on time} 1-0

[Event "Fast Chess"]
[Site "ChessKid.com"]
[Date "2020.04.26"]
[Round "3"]
[White "Horvath, Alexander"]
[Black "Li, Tobias"]
[Result "0-1"]
[ECO "C50"]
[WhiteElo "1304"]
[BlackElo "1365"]
[Annotator "Strategie ungl. 00; Abzug"]
[PlyCount "58"]
[EventDate "2020.??.??"]
[TimeControl "180"]
[WhiteClock "0:01:13"]
[BlackClock "0:01:29"]

1. e4 {[%emt 0:00:02]} e5 {[%emt 0:00:00]} 2. Nf3 {[%emt 0:00:04]} Nc6 {
[%emt 0:00:01]} 3. Nc3 {[%emt 0:00:01]} Nf6 {[%emt 0:00:00]} 4. Bc4 {[%emt 0:
00:01]} Bc5 {[%emt 0:00:00]} 5. d3 {[%emt 0:00:02]} O-O {[%emt 0:00:01]} 6. Bg5
{[%emt 0:00:02]} h6 {[%emt 0:00:03]} 7. Bh4 {[%emt 0:00:03]} d6 {[%emt 0:00:01]
} 8. Nd5 {[%emt 0:00:03]} Bg4 {[%emt 0:00:01]} 9. Nxf6+ {[%emt 0:00:04]} gxf6 {
[%emt 0:00:02]} 10. h3 {[%emt 0:00:04]} Bh5 {[%emt 0:00:01]} 11. g4 {[%emt 0:
00:01]} Bg6 {[%emt 0:00:02]} 12. Qe2 {[%emt 0:00:03]} Nd4 {[%emt 0:00:03]} 13.
Nxd4 {[%emt 0:00:02]} Bxd4 {[%emt 0:00:03]} 14. c3 {[%emt 0:00:04]} Bb6 {
[%emt 0:00:02]} 15. O-O-O {[%emt 0:00:02]} Re8 {[%emt 0:00:06]} 16. Kb1 {
[%emt 0:00:03]} a6 {[%emt 0:00:06]} 17. Qf3 {[%emt 0:00:06]} Ba7 {[%emt 0:00:
11]} 18. Bxf6 {[%emt 0:00:03]} Qd7 {[%emt 0:00:02]} 19. d4 $4 {[%emt 0:00:11]}
exd4 {[%emt 0:00:04]} 20. Bxd4 {[%emt 0:00:02]} Bxd4 {[%emt 0:00:04]} 21. cxd4
{[%emt 0:00:02]} Bxe4+ {[%emt 0:00:11]} 22. Qxe4 {[%emt 0:00:11]} Rxe4 {
[%emt 0:00:05]} 23. Bd3 {[%emt 0:00:05]} Rxd4 {[%emt 0:00:15]} 24. Bh7+ {
[%emt 0:00:02]} Kxh7 {[%emt 0:00:01]} 25. Rxd4 {[%emt 0:00:01]} Qc6 {[%emt 0:
00:02]} 26. Rhd1 {[%emt 0:00:03]} Re8 {[%emt 0:00:10]} 27. h4 {[%emt 0:00:01]}
Re2 {[%emt 0:00:07]} 28. g5 {[%emt 0:00:02]} Qc2+ {[%emt 0:00:03]} 29. Ka1 {
[%emt 0:00:02]} Qxb2# {[%emt 0:00:01] OnlyHungryKiwi won by checkmate} 0-1

[Event "Fast Chess"]
[Site "ChessKid.com"]
[Date "2020.04.27"]
[Round "1"]
[White "Georgiev, Maximilian"]
[Black "Dai, Lana"]
[Result "0-1"]
[ECO "A25"]
[WhiteElo "1417"]
[BlackElo "1278"]
[Annotator "Mattsetzen - Schwarz setzt Matt in 1"]
[PlyCount "42"]
[EventDate "2020.??.??"]
[TimeControl "900"]
[WhiteClock "0:11:51"]
[BlackClock "0:13:39"]

1. c4 {[%emt 0:00:01]} e5 {[%emt 0:00:02]} 2. g3 {[%emt 0:00:01]} Nc6 {[%emt 0:
00:02]} 3. Bg2 {[%emt 0:00:01]} Nf6 {[%emt 0:00:02]} 4. Nc3 {[%emt 0:00:02]}
Bc5 {[%emt 0:00:02]} 5. e3 {[%emt 0:00:02]} d6 {[%emt 0:00:03]} 6. Nge2 {
[%emt 0:00:02]} Bg4 {[%emt 0:00:02]} 7. O-O {[%emt 0:00:01]} O-O {[%emt 0:00:
07]} 8. d3 {[%emt 0:00:01]} a6 {[%emt 0:00:32]} 9. f3 {[%emt 0:00:01]} Be6 {
[%emt 0:00:07]} 10. Kh1 {[%emt 0:00:09]} Qd7 {[%emt 0:00:07]} 11. e4 {[%emt 0:
00:06]} Bh3 {[%emt 0:00:04]} 12. Bg5 {[%emt 0:00:03]} Bxg2+ {[%emt 0:00:04]}
13. Kxg2 {[%emt 0:00:01]} Nh5 {[%emt 0:00:17]} 14. Kh1 $4 {[%emt 0:00:07]} Qh3
{[%emt 0:00:09]} 15. Ng1 $4 {[%emt 0:00:03]} Bxg1 $4 {[%emt 0:00:16]} 16. Kxg1
{[%emt 0:00:04]} f6 {[%emt 0:00:08]} 17. Bc1 {[%emt 0:00:06]} Nd4 {[%emt 0:00:
25]} 18. Be3 {[%emt 0:00:09]} f5 {[%emt 0:00:19]} 19. Ne2 {[%emt 0:00:09]} fxe4
{[%emt 0:00:10]} 20. dxe4 {[%emt 0:00:03]} Nxf3+ {[%emt 0:00:09]} 21. Kh1 {
[%emt 0:00:10]} Qxh2# {[%emt 0:00:02] TopBrownCave won by checkmate} 0-1

[Event "Fast Chess"]
[Site "ChessKid.com"]
[Date "2020.04.27"]
[Round "1"]
[White "Li, Patrick"]
[Black "Li, Tobias"]
[Result "0-1"]
[ECO "C50"]
[WhiteElo "1090"]
[BlackElo "1332"]
[PlyCount "36"]
[EventDate "2020.??.??"]
[TimeControl "900"]
[WhiteClock "0:14:06"]
[BlackClock "0:12:58"]

1. e4 {[%emt 0:00:06]} e5 {[%emt 0:00:01]} 2. Nf3 {[%emt 0:00:02]} Nc6 {
[%emt 0:00:02]} 3. Nc3 {[%emt 0:00:03]} Bc5 {[%emt 0:00:01]} 4. Bc4 {[%emt 0:
00:02]} Nf6 {[%emt 0:00:00]} 5. O-O {[%emt 0:00:02]} O-O {[%emt 0:00:01]} 6. d3
{[%emt 0:00:07]} h6 {[%emt 0:00:02]} 7. b3 {[%emt 0:00:05]} d6 {[%emt 0:00:03]}
8. d4 {[%emt 0:00:05]} exd4 {[%emt 0:00:02]} 9. Nxd4 {[%emt 0:00:05]} Bxd4 {
[%emt 0:00:01]} 10. Nd5 {[%emt 0:00:07]} Bxa1 {[%emt 0:00:04]} 11. Nxf6+ {
[%emt 0:00:13]} Bxf6 {[%emt 0:00:03]} 12. Qf3 {[%emt 0:00:10]} Bg5 {[%emt 0:00:
15]} 13. Bxg5 {[%emt 0:00:14]} Qxg5 {[%emt 0:00:02]} 14. Bd3 {[%emt 0:00:12]}
Qg6 {[%emt 0:00:07]} 15. e5 {[%emt 0:00:11]} Nxe5 {[%emt 0:00:01]} 16. Qe3 {
[%emt 0:00:11]} Nxd3 {[%emt 0:00:06]} 17. Qxd3 {[%emt 0:00:04]} Qxd3 {[%emt 0:
00:04]} 18. cxd3 {[%emt 0:00:03]} Bf5 {[%emt 0:00:00] OnlyHungryKiwi won by
resignation} 0-1

[Event "Fast Chess"]
[Site "ChessKid.com"]
[Date "2020.04.27"]
[Round "2"]
[White "Li, Tobias"]
[Black "Dai, Lana"]
[Result "0-1"]
[ECO "C55"]
[WhiteElo "1323"]
[BlackElo "1288"]
[Annotator "Doppelangriff"]
[PlyCount "100"]
[EventDate "2020.??.??"]
[TimeControl "900"]
[WhiteClock "0:08:50"]
[BlackClock "0:11:06"]

1. e4 {[%emt 0:00:02]} e5 {[%emt 0:00:01]} 2. Nf3 {[%emt 0:00:02]} Nc6 {
[%emt 0:00:01]} 3. Nc3 {[%emt 0:00:02]} Nf6 {[%emt 0:00:01]} 4. Bc4 {[%emt 0:
00:00]} h6 {[%emt 0:00:03]} 5. O-O {[%emt 0:00:01]} Bc5 {[%emt 0:00:02]} 6. h3
{[%emt 0:00:03]} O-O {[%emt 0:00:04]} 7. a3 {[%emt 0:00:00]} a6 {[%emt 0:00:02]
} 8. b4 {[%emt 0:00:02]} Bd4 {[%emt 0:00:07]} 9. Bb2 {[%emt 0:00:08]} b5 {
[%emt 0:00:06]} 10. Bd5 {[%emt 0:00:03]} Nxd5 {[%emt 0:00:05]} 11. exd5 {
[%emt 0:00:01]} Bxc3 {[%emt 0:00:02]} 12. Bxc3 {[%emt 0:00:05]} e4 {[%emt 0:00:
13]} 13. dxc6 {[%emt 0:00:04]} exf3 {[%emt 0:00:01]} 14. cxd7 {[%emt 0:00:01]}
fxg2 {[%emt 0:00:05]} 15. Kxg2 {[%emt 0:00:08]} Qxd7 {[%emt 0:00:01]} 16. Qf3 {
[%emt 0:00:04]} c5 $3 {[%emt 0:00:18]} 17. Qxa8 $2 {[%emt 0:00:09]} Bb7+ $1 {
[%emt 0:00:04]} 18. Qxb7 {[%emt 0:00:06]} Qxb7+ {[%emt 0:00:02]} 19. Kg1 {
[%emt 0:00:01]} Qf3 {[%emt 0:00:07]} 20. Kh2 {[%emt 0:00:09]} Qf4+ {[%emt 0:00:
04]} 21. Kg2 {[%emt 0:00:04]} Qg5+ {[%emt 0:00:02]} 22. Kh2 {[%emt 0:00:03]}
cxb4 {[%emt 0:00:10]} 23. axb4 {[%emt 0:00:03]} Ra8 $5 {[%emt 0:00:04]} 24. Ra5
$2 {[%emt 0:00:23]} Qf4+ {[%emt 0:00:04]} 25. Kg2 {[%emt 0:00:02]} Qe4+ {
[%emt 0:00:03]} 26. Kh2 {[%emt 0:00:02]} Qxc2 {[%emt 0:00:01]} 27. Rg1 {
[%emt 0:00:08]} g6 {[%emt 0:00:16]} 28. Rf1 {[%emt 0:00:16]} Qd3 {[%emt 0:00:
06]} 29. Re1 {[%emt 0:00:05]} Qd6+ {[%emt 0:00:10]} 30. Kg2 {[%emt 0:00:02]}
Qd5+ {[%emt 0:00:03]} 31. Kh2 {[%emt 0:00:02]} Qf3 {[%emt 0:00:06]} 32. Rf1 {
[%emt 0:00:04]} Qf4+ {[%emt 0:00:10]} 33. Kg2 {[%emt 0:00:04]} h5 {[%emt 0:00:
06]} 34. Rfa1 {[%emt 0:00:08]} Qe4+ {[%emt 0:00:07]} 35. Kh2 {[%emt 0:00:02]}
Qf4+ {[%emt 0:00:19]} 36. Kg2 {[%emt 0:00:03]} Qd6 {[%emt 0:00:11]} 37. Kg1 {
[%emt 0:00:10]} Qe6 {[%emt 0:00:29]} 38. Kg2 {[%emt 0:00:16]} g5 {[%emt 0:00:
08]} 39. Kh2 {[%emt 0:00:19]} g4 {[%emt 0:00:05]} 40. h4 {[%emt 0:00:02]} Qd6+
{[%emt 0:00:09]} 41. Kg2 {[%emt 0:00:04]} Qd5+ {[%emt 0:00:06]} 42. Kh2 {
[%emt 0:00:03]} Qd8 {[%emt 0:00:41]} 43. Kg3 {[%emt 0:00:03]} Qc7+ {[%emt 0:00:
21]} 44. Kg2 {[%emt 0:00:02]} Qc6+ {[%emt 0:00:10]} 45. Kg3 {[%emt 0:00:03]}
Qf3+ {[%emt 0:00:15]} 46. Kh2 {[%emt 0:00:03]} Qxf2+ {[%emt 0:00:04]} 47. Kh1 {
[%emt 0:00:01]} Qf3+ {[%emt 0:00:06]} 48. Kh2 {[%emt 0:00:02]} g3+ {[%emt 0:00:
01]} 49. Kg1 {[%emt 0:00:04]} Qf2+ {[%emt 0:00:06]} 50. Kh1 {[%emt 0:00:01]}
Qh2# {[%emt 0:00:03] TopBrownCave won by checkmate} 0-1